bitfinex-derivatives/quotes_ETHF0:USTF0_20251024
["timestamp","ask_amount","ask_price","bid_price","bid_amount"]
[1761301865630,0.7699,3951.9,3951.8,0.88959]
[1761301865833,0.7699,3951.9,3951.8,9.81859]
[1761301866332,0.7699,3951.9,3951.8,10.13729]
[1761301867133,3.6701,3952.4,3952.3,1.22073]
[1761301867326,3.6701,3952.4,3952.3,10.14973]
[1761301867532,4.0212,3952.4,3952.3,10.14973]
[1761301869931,0.8134,3952.4,3952.3,10.14973]
[1761301870435,0.5821,3952.4,3952.3,10.14973]
[1761301870732,3.2078,3952.8,3952.6,0.7654]
[1761301870733,0.8134,3952.7,3952.6,0.7654]
[1761301871030,0.8134,3952.7,3952.6,9.6944]
[1761301871531,0.8134,3952.7,3952.6,10.1497]
[1761301872231,0.8134,3952.7,3952.6,9.831]
[1761301873230,0.8134,3952.7,3952.6,10.1497]
[1761301873935,1.8134,3952.7,3952.6,10.1497]
[1761301875734,1.3511,3952.7,3952.6,10.1497]
[1761301875929,1.5821,3952.7,3952.6,10.1497]
[1761301876528,1.0,3952.7,3952.6,10.1497]
[1761301876734,1.0,3952.7,3952.6,13.3575]
[1761301876930,1.8134,3952.7,3952.4,0.68060467]
[1761301877134,0.9453,3952.5,3952.4,0.68412]
[1761301877333,0.9453,3952.5,3952.4,9.61212]
[1761301877529,0.9453,3952.5,3952.4,0.90202]
[1761301877735,0.9453,3952.5,3952.4,9.83002]
[1761301877933,0.9453,3952.5,3952.4,10.14872]
[1761301878236,0.9453,3952.5,3952.4,1.22072]
[1761301878437,0.9453,3952.5,3952.4,10.14872]
[1761301880640,0.9453,3952.5,3952.4,1.22072]
[1761301880938,0.9453,3952.5,3952.4,10.14872]
[1761301883134,0.9453,3952.5,3952.4,0.90202]
[1761301883339,0.9453,3952.5,3952.4,10.14872]
[1761301883731,0.5821,3952.5,3952.4,10.14872]
[1761301884230,0.3511,3952.5,3952.4,10.82932467]
[1761301885139,0.3511,3952.5,3952.4,10.14872]
[1761301885440,0.3511,3952.5,3952.4,1.22072]
[1761301885738,0.3511,3952.5,3952.4,10.14872]
[1761301886339,0.714,3952.5,3952.4,1.22072]
[1761301886540,0.714,3952.5,3952.4,10.14872]
[1761301887744,0.714,3952.5,3952.4,1.22072]
[1761301887935,0.714,3952.5,3952.4,10.14872]
[1761301888135,0.714,3952.5,3952.4,1.22072]
[1761301888330,0.5821,3952.5,3952.4,10.14872]
[1761301888535,0.3511,3952.5,3952.4,10.14872]
[1761301889135,0.3511,3952.5,3952.4,1.22072]
[1761301889442,0.3511,3952.5,3952.4,10.14872]
[1761301890040,0.3511,3952.5,3952.4,1.22072]
[1761301890345,0.3511,3952.5,3952.4,10.14872]
[1761301890941,0.3511,3952.5,3952.4,1.22072]
[1761301891240,1.3393,3952.7,3952.6,1.2398]
[1761301891444,1.0,3952.7,3952.6,1.92154583]
[1761301892132,1.0,3952.7,3952.6,1.2398]
[1761301892331,1.0,3952.7,3952.6,2.14935231]
[1761301895341,1.0,3952.7,3952.6,1.2398]
[1761301902155,1.0,3952.7,3952.6,10.1658]
[1761301903044,1.0,3952.7,3952.6,1.2398]
[1761301903252,1.3393,3952.7,3952.6,10.1658]
[1761301904047,1.3393,3952.7,3952.6,1.2398]
[1761301904256,1.3393,3952.7,3952.6,10.1658]
[1761301906149,1.3393,3952.7,3952.6,13.3736]
[1761301906655,1.0,3952.7,3952.6,13.3736]
[1761301906855,1.3393,3952.7,3952.6,13.3736]
[1761301907557,1.0,3952.7,3952.6,13.3736]
[1761301908955,0.2317,3954.0,3953.9,1.23965]
[1761301909146,0.2317,3954.0,3953.9,11.0744686]
[1761301909346,0.7923,3954.4,3954.3,0.7845]
[1761301909653,0.7923,3954.4,3954.3,10.1656]
[1761301909955,0.7948469,3954.4,3954.3,9.84752256]
[1761301910651,4.0026469,3954.4,3954.3,9.38412256]
[1761301913156,4.0026469,3954.4,3954.3,0.00302256]
[1761301913459,9.4577369,3954.4,3954.3,6.94902256]
[1761301913759,9.4577369,3954.4,3954.3,0.00302256]
[1761301914752,0.3393,3953.4,3953.2,0.68029509]
[1761301914958,0.7923,3952.8,3952.7,9.7105]
[1761301915259,0.3393,3952.7,3952.6,1.2398]
[1761301915458,0.3393,3952.7,3952.6,10.1778]
[1761301915657,0.3622,3953.0,3952.9,1.23976]
[1761301915858,0.2317,3953.0,3952.9,1.23976]
[1761301916259,0.3393,3953.0,3952.9,1.23976]
[1761301917263,0.571,3953.0,3952.9,1.23976]
[1761301918665,0.1305,3953.5,3952.9,1.23976]
[1761301918666,0.5835,3953.5,3953.4,0.6887]
[1761301918858,0.5835,3953.5,3953.4,0.9186]
[1761301919360,0.9155,3953.5,3953.4,0.9186]
[1761301920160,0.9155,3953.5,3953.4,1.2365]
[1761301921264,0.9155,3953.5,3953.4,0.4634]
[1761301921466,0.9155,3953.5,3953.4,0.6887]
[1761301924368,0.7763,3953.2,3953.1,0.68029509]
[1761301924573,0.332,3952.8,3952.6,0.68283626]
[1761301924759,0.7763,3952.7,3952.6,0.23514117]
[1761301924969,0.332,3952.9,3952.7,0.3179]
[1761301925269,0.332,3952.9,3952.8,1.90582519]
[1761301925770,0.7763,3952.9,3952.8,1.22487]
[1761301926066,0.7763,3952.9,3952.8,0.90697]
[1761301927577,0.332,3952.8,3952.7,0.68095519]
[1761301927875,0.7763,3952.7,3952.6,0.00254117]
[1761301929671,1.23158,3952.7,3952.6,0.00254117]
[1761301929863,1.23162,3952.4,3952.3,0.0714]
[1761301930069,4.43942,3952.4,3952.3,0.0714]
[1761301930270,0.7763,3951.7,3951.6,0.68801]
[1761301930465,0.7763,3951.7,3951.6,0.2326]
[1761301930671,0.7763,3951.6,3951.5,4.34417519]
[1761301930977,0.7763,3951.6,3951.5,4.34648169]
[1761301930978,0.77929804,3951.6,3951.5,4.34648169]
[1761301931174,0.77929804,3951.6,3951.5,3.6655265]
[1761301931868,0.77929804,3951.6,3951.5,3.8981265]
[1761301932072,0.77929804,3951.6,3951.5,4.4351265]
[1761301932369,0.77929804,3951.6,3951.5,4.1172265]
[1761301935676,0.77929804,3951.6,3951.5,4.4351265]
[1761301935978,0.00299804,3951.6,3951.5,4.4351265]
[1761301940278,8.04e-06,3951.6,3951.5,4.4351265]
[1761301949179,0.3403,3952.8,3952.7,0.2345]
[1761301949377,0.1404,3953.0,3952.9,1.24026]
[1761301949583,0.3691,3953.0,3952.9,1.24026]
[1761301949980,3.2078,3953.4,3953.3,0.91051]
[1761301949981,4.0072,3953.4,3953.3,0.91051]
[1761301950181,4.00966105,3953.4,3953.3,0.91051]
[1761301951086,0.80186105,3953.4,3953.3,0.91051]
[1761301951785,0.80186105,3953.4,3953.3,0.45521]
[1761301951986,0.3403,3953.3,3953.1,0.68972]
[1761301952186,0.7994,3953.2,3953.1,0.68972]
[1761301952587,0.7994,3953.2,3953.1,1.24022]
[1761301952781,0.4364,3952.8,3952.7,0.68005097]
[1761301952983,0.788,3952.7,3952.6,1.35434097]
[1761301953189,0.788,3952.7,3952.6,0.45529]
[1761301953482,0.788,3952.7,3952.6,0.67429]
[1761301953687,0.788,3952.7,3952.6,0.89079]
[1761301954092,0.788,3952.7,3952.6,1.57084097]
[1761301954488,0.788,3952.7,3952.6,10.84794097]
[1761301955388,0.788,3952.7,3952.6,10.51484097]
[1761301955589,0.788,3952.7,3952.6,10.29834097]
[1761301955784,0.788,3952.7,3952.6,0.68005097]
[1761301955999,0.788,3952.7,3952.6,8.319]
[1761301958406,0.788,3952.7,3952.6,8.77429]
[1761301958908,0.788,3952.6,3952.5,0.4553]
[1761301959112,0.788,3952.6,3952.5,9.4003]
[1761301959404,0.788,3952.4,3952.3,0.45532]
[1761301959608,0.788,3952.4,3952.3,9.40032]
[1761301959810,0.788,3952.4,3952.3,9.61932]
[1761301960111,0.788,3952.4,3952.3,10.16892]
[1761301960708,0.788,3952.4,3952.3,9.83582]
[1761301961205,0.788,3952.4,3952.3,9.40032]
[1761301962602,0.788,3952.4,3952.3,9.40532]
[1761301962911,0.788,3952.4,3952.3,9.62432]
[1761301964412,0.788,3952.4,3952.3,9.84082]
[1761301964808,0.3516,3952.4,3952.3,10.17392]
[1761301965013,0.1331,3952.5,3952.4,0.7686]
[1761301965014,0.3516,3952.5,3952.4,0.7686]
[1761301966109,0.3516,3952.5,3952.4,1.22392]
[1761301966316,0.5755,3952.9,3952.8,0.7686]
[1761301966513,0.5755,3952.9,3952.8,9.7156]
[1761301967015,0.5755,3952.9,3952.8,10.17086]
[1761301969013,0.788,3952.9,3952.8,10.17086]
[1761301971416,0.5755,3952.9,3952.8,10.17086]
[1761301974421,3.2078,3953.0,3952.9,0.78836]
[1761301974726,3.5594,3953.0,3952.9,1.22386]
[1761301977325,3.7833,3953.0,3952.9,1.22386]
[1761301978627,0.5755,3953.0,3952.9,1.22386]
[1761301979525,0.9374,3953.0,3952.9,1.22386]
[1761301980515,0.9374,3953.0,3952.9,10.16486]
[1761301981227,0.9374,3953.0,3952.9,1.22386]
[1761301981428,0.9374,3953.0,3952.9,10.16386]
[1761301982024,0.9374,3953.0,3952.9,1.22386]
[1761301982222,0.9374,3953.0,3952.9,9.82976]
[1761301983027,0.9374,3953.0,3952.9,1.22136]
[1761301983222,0.9374,3953.0,3952.9,10.16136]
[1761301983929,0.9374,3953.0,3952.9,9.83076]
[1761301984129,0.9374,3953.0,3952.9,10.16136]
[1761301984730,0.706,3953.0,3952.9,10.16036]
[1761301984930,0.706,3953.0,3952.9,1.22136]
[1761301985129,0.706,3953.0,3952.9,10.15936]
[1761301985630,0.706,3953.0,3952.9,1.22136]
[1761301985826,0.32096105,3953.4,3953.2,0.3306]
[1761301986127,0.00246105,3953.4,3953.3,10.17021]
[1761301986522,0.32096105,3953.4,3953.3,10.17021]
[1761301988032,0.00246105,3953.4,3953.3,10.17021]
[1761301989327,0.00246105,3953.4,3953.3,11.07844955]
[1761301989729,0.00246105,3953.4,3953.3,10.17021]
[1761301990327,0.4583,3954.7,3953.3,3.22520069]
[1761301990533,0.4583,3954.7,3953.2,1.3632279]
[1761301990534,0.5454,3953.9,3953.8,0.777]
[1761301990722,0.3185,3953.9,3953.8,7.615]
[1761301990925,3.5263,3954.0,3953.9,1.23215]
[1761301991231,4.1151,3954.0,3953.9,1.23215]
[1761301991421,4.1169084,3954.0,3953.9,0.4464]
[1761301991622,0.449,3953.5,3953.3,1.36106797]
[1761301991826,0.7768,3953.4,3953.3,0.6802]
[1761301992027,0.7768,3953.4,3953.3,9.9086]
[1761301993331,0.7768,3953.4,3953.3,0.9016]
[1761301993531,0.7768,3953.4,3953.3,9.9076]
[1761301993732,0.7768,3953.4,3953.3,9.9066]
[1761301994031,0.7768,3953.4,3953.3,9.9056]
[1761301994422,0.7768,3953.4,3953.3,0.9016]
[1761301994622,0.7768,3953.4,3953.3,9.9056]
[1761301994823,0.3185,3953.3,3953.2,1.36108797]
[1761301995019,0.7768,3953.3,3953.2,10.23522]
[1761301995436,0.7768,3953.3,3953.2,1.23222]
[1761301995731,0.7768,3953.3,3953.2,10.23522]
[1761301996337,0.7768,3953.3,3953.2,0.90162]
[1761301996526,0.7768,3953.3,3953.2,9.90462]
[1761301996727,0.7768,3953.3,3953.2,0.90162]
[1761301996928,0.3185,3953.2,3953.0,0.68086797]
[1761301997134,0.3185,3953.2,3953.0,0.45525]
[1761301997135,0.7768,3953.1,3953.0,0.45525]
[1761301997330,0.7768,3953.1,3953.0,9.45625]
[1761301997531,0.7768,3953.1,3953.0,9.68125]
[1761301998037,0.7768,3953.1,3953.0,0.68025]
[1761301998233,0.7768,3953.1,3953.0,9.68025]
[1761301998631,0.7768,3953.1,3953.0,0.68025]
[1761301998931,0.7768,3953.1,3953.0,9.67925]
[1761301999130,0.7768,3953.1,3953.0,0.68025]
[1761301999336,0.7768,3953.1,3953.0,9.67925]
[1761301999831,0.7768,3953.1,3953.0,9.67825]
[1761302000032,0.7768,3953.1,3953.0,0.68025]
[1761302000342,0.7768,3953.1,3953.0,9.67725]
[1761302000541,0.7768,3953.1,3953.0,0.225]
[1761302000739,0.3185,3952.9,3952.7,1.13614797]
[1761302000949,0.7768,3952.8,3952.7,0.45528]
[1761302001135,0.5888,3952.5,3952.3,0.90586797]
[1761302001342,0.7768,3952.4,3952.3,0.90586797]
[1761302001638,0.7768,3952.4,3952.3,0.225]
[1761302001840,0.7768,3952.4,3952.3,9.223]
[1761302003744,0.7768,3952.4,3952.3,9.4444]
[1761302005235,0.7768,3952.4,3952.3,0.4464]
[1761302005640,0.7768,3952.4,3952.3,9.4404]
[1761302005946,0.7768,3952.4,3952.3,9.89573]
[1761302007250,0.7768,3952.4,3952.3,0.90173]
[1761302007438,0.7768,3952.4,3952.3,9.89373]
[1761302008045,0.4583,3952.1,3952.0,1.36122797]
[1761302008252,0.7768,3952.1,3952.0,0.68036]
[1761302008450,0.7768,3951.9,3951.8,0.68038]
[1761302008656,0.7768,3951.9,3951.8,9.67138]
[1761302009346,0.7768,3951.9,3951.8,0.90178]
[1761302009544,0.7768,3951.9,3951.8,9.89278]
[1761302010554,0.7768,3951.9,3951.8,0.90178]
[1761302010853,0.7768,3951.9,3951.8,9.89178]
[1761302012455,0.5463,3951.8,3951.7,0.9089]
[1761302012760,0.3264,3951.8,3951.7,10.2181]
[1761302013155,0.5463,3951.8,3951.7,1.2291]
[1761302013355,0.5463,3951.8,3951.7,10.2161]
[1761302014360,0.3264,3951.8,3951.7,10.2161]
[1761302015260,0.5463,3951.8,3951.7,10.2161]
[1761302016356,0.3264,3951.8,3951.7,10.2161]
[1761302017662,0.3264,3952.0,3951.7,9.4405]
[1761302017959,3.2078,3952.1,3952.0,1.22906]
[1761302018662,0.3264,3952.5,3952.4,1.22902]
[1761302018867,0.3264,3952.5,3952.4,10.21302]
[1761302019066,3.2078,3952.6,3952.5,1.349]
[1761302024576,0.90478068,3953.7,3952.6,3.2078]
[1761302024771,0.1378084,3954.0,3953.8,0.45515]
[1761302024772,0.3264,3953.9,3953.8,0.45515]
[1761302024972,0.3264,3953.9,3953.8,9.61815]
[1761302025470,0.3264,3953.9,3953.8,12.82595]
[1761302025675,0.3264,3953.9,3953.8,3.66295]
[1761302025872,0.77603699,3953.9,3953.8,3.66295]
[1761302026072,0.77603699,3953.9,3953.8,12.82495]
[1761302026471,0.32933699,3953.9,3953.8,12.82495]
[1761302027367,0.32933699,3953.9,3953.8,13.73032421]
[1761302027673,0.32933699,3953.9,3953.8,12.82495]
[1761302027862,0.08741968,3954.0,3953.8,12.82495]
[1761302028068,0.136,3955.5,3954.4,0.45509]
[1761302028270,0.136,3955.5,3954.4,12.82189]
[1761302028974,0.13820704,3954.5,3954.4,12.82491793]
[1761302029778,0.35810704,3954.5,3954.4,12.82491793]
[1761302030075,0.68450704,3954.5,3954.4,12.82491793]
[1761302033478,0.68450704,3954.5,3954.4,3.66591793]
[1761302033664,0.46460704,3954.5,3954.4,12.81691793]
[1761302038284,0.136,3955.5,3954.9,0.45503]
[1761302038579,0.136,3955.5,3954.9,12.79583]
[1761302038779,0.136,3955.5,3955.4,0.45497]
[1761302038977,0.136,3955.5,3955.4,12.79477]
[1761302039181,0.13877469,3955.5,3955.4,12.79477]
[1761302039569,0.00277469,3955.5,3955.4,12.79477]
[1761302040578,0.325,3955.8,3955.7,0.45494]
[1761302040884,0.325,3955.8,3955.7,9.58194]
[1761302041586,0.32747811,3955.8,3955.7,9.38194]
[1761302042086,0.32747811,3955.8,3955.7,9.38094]
[1761302042581,0.32747811,3955.8,3955.7,0.25494]
[1761302042888,0.76917811,3955.8,3955.7,0.25494]
[1761302043182,0.76917811,3955.8,3955.7,9.37594]
[1761302044879,0.44417811,3955.8,3955.6,0.45495]
[1761302045076,0.5819,3955.5,3955.4,3.66277]
[1761302045275,0.5819,3955.5,3955.4,12.77877]
[1761302045493,0.9069,3955.5,3955.4,12.77877]
[1761302047088,0.4652,3955.5,3955.4,12.77877]
[1761302047487,0.32747811,3955.8,3955.7,0.45494]
[1761302047685,0.32747811,3955.8,3955.7,9.56594]
[1761302048887,0.00247811,3955.8,3955.7,9.56594]
[1761302051590,0.32747811,3955.8,3955.7,9.56594]
[1761302052787,0.325,3956.3,3955.7,9.56594]
[1761302052996,0.325,3956.4,3956.3,0.45487]
[1761302053186,0.325,3956.4,3956.3,9.55587]
[1761302053491,0.325,3956.4,3956.3,10.23480541]
[1761302053695,0.325,3956.4,3956.3,9.55587]
[1761302054179,0.32747363,3956.4,3956.3,9.55587]
[1761302054385,0.32747363,3956.4,3956.3,10.46111721]
[1761302054987,0.32747363,3956.4,3956.3,9.55587]
[1761302056389,0.136,3956.5,3956.4,0.45486]
[1761302056695,0.136,3956.5,3956.4,1.13332511]
[1761302056892,0.461,3956.5,3956.4,1.13332511]
[1761302057291,0.461,3957.0,3956.9,0.4548]
[1761302057495,0.4634587,3957.0,3956.9,12.7706]
[1761302058091,0.0024587,3957.0,3956.9,12.7706]
[1761302059991,0.347,3957.8,3957.7,0.45471]
[1761302060292,0.347,3957.8,3957.7,9.55571]
[1761302060293,0.5716,3957.8,3957.7,9.55571]
[1761302061188,0.57394306,3957.8,3957.7,9.55770005]
[1761302062388,0.79104306,3957.8,3957.7,0.00199005]
[1761302062591,6.24573306,3957.8,3957.7,7.64599005]
[1761302062991,6.24573306,3957.8,3957.3,3.2078]
[1761302063291,0.9069,3957.0,3956.9,3.6626]
[1761302063494,0.9069,3957.0,3956.9,9.3336]
[1761302063697,0.9069,3957.0,3956.9,12.7566]
[1761302064093,0.9069,3957.0,3956.9,12.75869455]
[1761302064490,0.1402,3957.5,3957.4,0.45474]
[1761302064690,0.34934306,3957.8,3957.7,0.45471]
[1761302064892,0.57394306,3957.8,3957.7,0.45471]
[1761302065297,0.34934306,3957.8,3957.7,0.45471]
[1761302066294,0.02434306,3957.8,3957.7,0.45471]
[1761302066598,0.02434306,3957.8,3957.7,1.1325829]
[1761302067701,0.02434306,3957.8,3957.7,1.35995721]
[1761302069297,0.35374306,3957.8,3957.7,0.45471]
[1761302069792,0.35374306,3957.8,3957.7,9.56471]
[1761302074403,0.02434306,3957.8,3957.7,9.56471]
[1761302075002,0.35374306,3957.8,3957.7,9.56471]
[1761302075303,0.35374306,3957.8,3957.7,10.46995721]
[1761302075907,0.02434306,3957.8,3957.7,10.46995721]
[1761302076099,0.02434306,3957.8,3957.7,9.56471]
[1761302077003,0.3294,3958.4,3958.3,0.45463]
[1761302077306,0.3294,3958.4,3958.3,9.54463]
[1761302078104,0.33180177,3958.4,3958.3,9.54463]
[1761302079601,0.33180177,3958.4,3958.3,10.44815943]
[1761302081203,0.33180177,3958.4,3958.3,12.75243]
[1761302082203,0.54280177,3958.4,3958.3,12.75243]
[1761302082392,0.43520177,3958.4,3958.3,0.67850557]
[1761302082598,0.1335,3958.0,3957.9,3.2078]
[1761302082798,0.5663,3958.0,3957.9,9.078]
[1761302083002,0.8957,3958.0,3957.9,9.078]
[1761302083202,0.8957,3958.0,3957.9,9.53267]
[1761302083699,0.8957,3958.0,3957.9,0.45467]
[1761302083905,0.8957,3958.0,3957.9,9.53267]
[1761302084110,0.8957,3958.0,3957.9,0.45467]
[1761302084408,0.8957,3958.0,3957.9,9.53067]
[1761302084705,0.3294,3957.8,3957.7,0.67850557]
[1761302084892,0.7622,3957.8,3957.7,9.75350557]
[1761302085093,0.7622,3957.8,3957.7,9.5297]
[1761302085399,0.3294,3957.7,3957.5,3.88630557]
[1761302085600,0.7622,3957.6,3957.5,3.2078]
[1761302085801,0.7622,3957.6,3957.5,12.2818]
[1761302087299,0.7622,3957.6,3957.5,3.2078]
[1761302087808,0.7622,3957.6,3957.5,12.2788]
[1761302088003,0.7622,3957.6,3957.5,3.2078]
[1761302088210,0.8957,3957.5,3957.4,0.45473]
[1761302088507,0.8957,3957.5,3957.4,9.52473]
[1761302088700,0.8957,3957.5,3957.4,0.45473]
[1761302088904,0.8957,3957.5,3957.4,9.52473]
[1761302089309,0.8957,3957.5,3957.4,0.45473]
[1761302089503,0.3294,3957.4,3957.2,1.13324557]
[1761302089703,0.7622,3957.3,3957.2,1.13324557]
[1761302089908,0.7622,3957.3,3957.2,10.20024557]
[1761302090097,0.7622,3957.3,3957.2,9.52174]
[1761302090303,0.7622,3957.3,3957.2,9.067]
[1761302090914,0.7622,3957.3,3957.2,9.52175]
[1761302091109,0.7622,3957.3,3957.2,0.45475]
[1761302091306,0.3294,3957.2,3957.0,0.45477]
[1761302091514,0.7622,3957.1,3957.0,0.45477]
[1761302091704,0.7622,3957.1,3957.0,9.51977]
[1761302093211,0.7622,3957.1,3957.0,9.51877]
[1761302095404,0.7622,3957.1,3956.9,0.00209455]
[1761302095611,0.8957,3957.0,3956.9,0.45688455]
[1761302095810,0.8957,3957.0,3956.9,9.51488455]
[1761302098734,0.6739,3957.0,3956.9,9.51488455]
[1761302100638,0.9,3957.0,3956.9,9.51488455]
[1761302101633,0.9,3957.0,3956.9,9.50488455]
[1761302102041,0.9,3957.0,3956.9,0.00209455]
[1761302102342,0.9,3957.0,3956.9,7.92909455]
[1761302102938,0.9,3957.0,3956.2,0.67850557]
[1761302102939,5.5706,3957.0,3956.2,0.67850557]
[1761302103236,5.5706,3957.0,3956.0,0.90464717]
[1761302103237,0.3278,3955.7,3955.5,3.2078]
[1761302103537,0.1358,3956.0,3955.5,3.66275]
[1761302103538,0.5531,3955.6,3955.5,3.66275]
[1761302103744,0.1358,3956.0,3955.9,0.4549]
[1761302104042,0.13882699,3956.0,3955.9,9.51087346]
[1761302104240,0.46662699,3956.0,3955.9,12.71867346]
[1761302105341,0.91802699,3956.0,3955.9,12.71667346]
[1761302105541,0.69192699,3956.0,3955.9,12.71667346]
[1761302105842,0.46662699,3956.0,3955.9,12.71667346]
[1761302106438,0.48339266,3956.0,3955.9,12.71667346]
[1761302106637,0.48984272,3956.0,3955.9,12.71667346]
[1761302107746,0.02624272,3956.0,3955.9,12.71667346]
[1761302108148,0.35404272,3956.0,3955.9,12.71667346]
[1761302108346,0.48984272,3956.0,3955.9,12.71667346]
[1761302108947,0.02624272,3956.0,3955.9,12.71667346]
[1761302109943,0.35404272,3956.0,3955.9,12.71667346]
[1761302110145,0.48984272,3956.0,3955.9,12.71667346]
[1761302111451,0.48984272,3956.0,3955.9,12.70767346]
[1761302112245,0.48984272,3956.0,3955.9,13.38617903]
[1761302114053,0.71514272,3956.0,3955.9,4.34417903]
[1761302114253,0.94124272,3956.0,3955.9,13.38231971]
[1761302115263,0.94124272,3956.0,3955.9,12.70267346]
[1761302116350,0.94124272,3956.0,3955.9,3.66567346]
[1761302116545,0.94124272,3956.0,3955.9,9.71691072]
[1761302116853,0.94124272,3956.0,3955.9,9.03697346]
[1761302117154,0.94124272,3956.0,3955.9,9.49187346]
[1761302118043,0.94124272,3956.0,3955.9,0.00297346]
[1761302118247,0.94124272,3956.0,3955.9,9.03397346]
[1761302118952,0.94124272,3956.0,3955.9,9.03297346]
[1761302119555,0.94124272,3956.0,3955.9,9.48787346]
[1761302123153,0.94124272,3956.0,3955.9,0.45787346]
[1761302123358,0.94124272,3956.0,3955.9,9.48187346]
[1761302124160,0.71514272,3956.0,3955.9,9.48187346]
[1761302124358,0.48984272,3956.0,3955.9,9.48187346]
[1761302125058,0.71514272,3956.0,3955.9,9.48187346]
[1761302125656,0.94124272,3956.0,3955.9,9.48187346]
[1761302126146,0.94124272,3956.0,3955.9,9.48087346]
[1761302126351,0.94124272,3956.0,3955.9,0.45787346]
[1761302126558,0.94124272,3956.0,3955.9,9.47787346]
[1761302126953,0.94124272,3956.0,3955.9,0.45787346]
[1761302127152,0.94124272,3956.0,3955.9,9.47787346]
[1761302127457,0.94124272,3956.0,3955.9,9.47687346]
[1761302127652,0.71514272,3956.0,3955.9,9.47687346]
[1761302128656,0.94124272,3956.0,3955.9,0.00297346]
[1761302129158,0.94124272,3956.0,3955.9,9.01897346]
[1761302129359,0.94124272,3956.0,3955.9,9.47387346]
[1761302129360,0.48984272,3956.0,3955.9,9.47387346]
[1761302129660,0.71244272,3956.0,3955.9,10.15381072]
[1761302129860,0.92964272,3956.0,3955.9,10.15381072]
[1761302132365,0.92964272,3956.0,3955.9,9.47387346]
[1761302133749,1.38453272,3956.0,3955.9,9.47387346]
[1761302133962,1.38453272,3956.0,3955.9,9.01897346]
[1761302134361,1.38453272,3956.0,3955.9,9.70070026]
[1761302134558,1.38453272,3956.0,3955.9,0.68470026]
[1761302134760,1.38453272,3956.0,3955.9,9.70070026]
[1761302134960,1.38453272,3956.0,3955.9,10.15560026]
[1761302135158,1.38453272,3956.0,3955.9,0.45787346]
[1761302135367,1.38453272,3956.0,3955.9,9.01897346]
[1761302137967,1.38453272,3956.0,3955.9,0.00297346]
[1761302142469,1.47269348,3956.0,3955.9,0.00297346]
[1761302143562,1.38453272,3956.0,3955.9,0.00297346]
[1761302143964,1.4726556,3956.0,3955.9,0.00297346]
[1761302145072,1.38453272,3956.0,3955.9,0.00297346]
[1761302145267,1.47267584,3956.0,3955.9,0.00297346]
[1761302148064,1.4726769,3956.0,3955.9,0.00297346]
[1761302158586,1.47272829,3956.0,3955.9,0.00297346]
[1761302160375,0.7875,3954.8,3954.7,1.81033415]
[1761302160581,1.24253,3954.8,3954.7,9.44104]
[1761302160777,0.81071573,3954.8,3954.7,9.44104]
[1761302161001,0.79414,3954.7,3954.6,0.45505]
[1761302161187,0.7875,3954.7,3954.6,0.45505]
[1761302161480,0.3391,3954.7,3954.6,9.44260723]
[1761302161687,0.36231573,3954.7,3954.6,9.44260723]
[1761302162483,0.36231573,3954.7,3954.6,0.45760723]
[1761302162678,0.59001573,3954.7,3954.6,9.44160723]
[1761302162884,0.59001573,3954.7,3954.6,0.45760723]
[1761302163084,0.81071573,3954.7,3954.6,0.45760723]
[1761302163286,0.81071573,3954.7,3954.6,9.44060723]
[1761302163591,0.81071573,3954.7,3954.6,9.44160723]
[1761302165190,1.26575573,3954.7,3954.6,8.98455723]
[1761302165389,1.26575573,3954.7,3954.6,0.00255723]
[1761302165895,1.26575573,3954.7,3954.6,9.43860723]
[1761302166489,1.26575573,3954.7,3954.6,8.98355723]
[1761302166884,1.26575573,3954.7,3954.6,0.00255723]
[1761302167087,1.26575573,3954.7,3954.6,8.98255723]
[1761302167593,1.26575573,3954.7,3954.6,0.00255723]
[1761302169093,1.36444864,3954.7,3954.6,0.00255723]
[1761302179613,1.24259,3954.4,3954.3,0.45508]
[1761302179810,1.26580573,3954.4,3954.3,0.45508]
[1761302180512,1.26580573,3954.4,3954.3,0.4575652]
[1761302181114,1.26580573,3954.4,3954.3,0.4865652]
[1761302183210,1.36932224,3954.4,3954.3,0.4865652]
[1761302185311,1.36932224,3954.4,3954.3,0.0314852]
[1761302186109,1.36932224,3954.4,3954.3,0.4865752]
[1761302190012,0.46583224,3954.4,3954.3,0.4865752]
[1761302190214,0.36231573,3954.4,3954.3,3.6943752]
[1761302190519,0.02321573,3954.4,3954.3,4.60275229]
[1761302191611,0.36111573,3954.4,3954.3,4.60275229]
[1761302193618,0.36111573,3954.4,3954.3,1.39495229]
[1761302193818,0.36111573,3954.4,3954.3,4.60275229]
[1761302194214,0.58531573,3954.4,3954.3,4.60275229]
[1761302194416,0.58531573,3954.4,3954.3,9.4665752]
[1761302195418,0.88531573,3954.4,3954.3,9.4665752]
[1761302196018,0.88531573,3954.4,3954.3,13.58275229]
[1761302196019,0.66111573,3954.4,3954.3,13.58275229]
[1761302198008,0.32321573,3954.4,3954.3,18.58275229]
[1761302198206,0.32321573,3954.4,3954.3,17.6743752]
[1761302198416,0.32321573,3954.4,3954.3,19.02966935]
[1761302198807,1.02657397,3954.7,3954.6,0.45505]
[1761302199215,0.9414,3955.0,3954.9,0.45502]
[1761302199411,0.9414,3955.0,3954.9,12.64182]
[1761302199612,3.2078,3955.8,3955.4,0.45496]
[1761302199819,3.2078,3955.8,3955.4,9.43396]
[1761302200215,0.4665,3955.5,3955.4,9.43396]
[1761302200611,3.2078,3955.8,3955.4,8.979]
[1761302200817,0.3379,3955.7,3955.6,0.45493]
[1761302201614,0.13162699,3956.0,3955.9,0.4549]
[1761302201815,0.13162699,3956.0,3955.9,9.4329]
[1761302202114,0.00302699,3956.0,3955.9,14.4329]
[1761302206723,0.48102699,3956.0,3955.9,14.4319]
[1761302207423,0.00302699,3956.0,3955.9,14.4319]
[1761302207815,0.00302699,3956.0,3955.9,14.4309]